bitfinex/quotes_BTCUSD_20250716
["timestamp","ask_amount","ask_price","bid_price","bid_amount"]
[1752690680693,0.03982113,119310.0,119300.0,4.06919169]
[1752690680896,0.03982113,119310.0,119300.0,4.90696169]
[1752690681971,0.00255113,119310.0,119300.0,1.17520013]
[1752690682184,0.00221751,119310.0,119300.0,1.19080013]
[1752690682399,0.00221751,119310.0,119300.0,5.33337213]
[1752690682821,0.00221751,119310.0,119300.0,5.30127213]
[1752690683039,0.02268751,119310.0,119300.0,4.90722169]
[1752690683256,0.03768751,119310.0,119300.0,4.76952169]
[1752690683473,0.43173795,119310.0,119300.0,3.10400069]
[1752690683705,0.43173795,119310.0,119300.0,2.96680069]
[1752690683923,0.03768751,119310.0,119300.0,0.78064969]
[1752690684136,0.03768751,119310.0,119300.0,4.90672169]
[1752690685956,0.03768751,119310.0,119300.0,0.78064969]
[1752690686175,0.03768751,119310.0,119300.0,4.90672169]
[1752690687083,0.03768751,119310.0,119300.0,0.78064969]
[1752690687288,0.03768751,119310.0,119300.0,4.90672169]
[1752690691033,0.03768751,119310.0,119300.0,3.87761169]
[1752690691250,0.03768751,119310.0,119300.0,4.90648169]
[1752690691475,0.0460684,119310.0,119300.0,4.28146969]
[1752690691692,0.03768751,119310.0,119300.0,1.74777769]
[1752690692140,0.03768751,119310.0,119300.0,0.78040969]
[1752690692346,0.03768751,119310.0,119300.0,4.03000769]
[1752690693223,0.03768751,119310.0,119300.0,4.90648169]
[1752690693435,0.03768751,119310.0,119300.0,4.86981669]
[1752690694291,0.03768751,119310.0,119300.0,4.90648169]
[1752690697554,0.03768751,119310.0,119300.0,0.78040969]
[1752690697764,0.03768751,119310.0,119300.0,4.90648169]
[1752690698414,0.03768751,119310.0,119300.0,4.14736269]
[1752690698672,0.03768751,119310.0,119300.0,4.90648169]
[1752690699644,0.03768751,119310.0,119300.0,0.75526069]
[1752690699898,0.03768751,119310.0,119300.0,4.88133269]
[1752690701095,0.03768751,119310.0,119300.0,1.94192969]
[1752690701761,0.03768751,119310.0,119300.0,4.88133269]
[1752690702642,0.03768751,119310.0,119300.0,0.75526069]
[1752690702873,0.03768751,119310.0,119300.0,4.88133269]
[1752690703555,0.03768751,119310.0,119300.0,0.75526069]
[1752690704007,0.03768751,119310.0,119300.0,4.88159269]
[1752690704224,0.00221751,119310.0,119300.0,4.88159269]
[1752690704877,0.00221751,119310.0,119300.0,1.13954535]
[1752690705096,0.0024,119330.0,119320.0,0.53275811]
[1752690705308,0.0024,119330.0,119320.0,4.88064039]
[1752690706161,0.00547,119330.0,119320.0,4.88064039]
[1752690706389,0.023,119330.0,119320.0,4.88064039]
[1752690706606,0.0398,119330.0,119320.0,4.88064039]
[1752690709932,0.0398,119330.0,119320.0,4.74460039]
[1752690710150,0.0398,119330.0,119320.0,4.88040039]
[1752690711252,0.0243,119330.0,119320.0,4.88040039]
[1752690711467,0.0034,119330.0,119320.0,4.88040039]
[1752690712811,0.00647,119330.0,119320.0,4.88040039]
[1752690713458,0.0034,119330.0,119320.0,4.88040039]
[1752690714082,0.0034,119330.0,119320.0,0.75432839]
[1752690714303,0.0034,119330.0,119320.0,4.88040039]
[1752690715571,0.00647,119330.0,119320.0,4.88040039]
[1752690715758,0.0034,119330.0,119320.0,4.88040039]
[1752690716182,0.0034,119330.0,119320.0,5.27346974]
[1752690716399,0.0034,119330.0,119320.0,5.30546974]
[1752690716843,0.0034,119330.0,119320.0,5.28896974]
[1752690717058,0.0034,119330.0,119320.0,4.88040039]
[1752690717630,0.0034,119330.0,119320.0,5.28846974]
[1752690717839,0.0024,119330.0,119320.0,5.30506974]
[1752690718472,0.0024,119330.0,119320.0,4.89540039]
[1752690718677,0.0024,119330.0,119320.0,5.28846974]
[1752690718828,0.0024,119330.0,119320.0,4.89540039]
[1752690719042,0.0024,119330.0,119320.0,5.27346974]
[1752690719252,0.0024,119330.0,119320.0,5.28876974]
[1752690719456,0.0024,119330.0,119320.0,5.30426974]
[1752690720293,0.0024,119330.0,119320.0,1.20334474]
[1752690720497,0.0024,119330.0,119320.0,5.32957674]
[1752690720746,0.0024,119330.0,119320.0,5.72264609]
[1752690720929,0.0034,119350.0,119340.0,0.53272579]
[1752690721139,0.00390367,119350.0,119340.0,5.29003742]
[1752690721354,0.00390367,119350.0,119340.0,5.30583742]
[1752690722223,0.00490367,119350.0,119340.0,5.30583742]
[1752690722453,0.00390367,119350.0,119340.0,5.30974142]
[1752690723348,0.0004,119360.0,119350.0,0.53270965]
[1752690723554,0.00055104,119360.0,119350.0,5.45598128]
[1752690723962,0.00055104,119360.0,119350.0,5.48127378]
[1752690724165,0.003,119370.0,119360.0,0.53269351]
[1752690724374,0.003,119370.0,119360.0,5.30596514]
[1752690724982,0.0004,119380.0,119370.0,0.68267737]
[1752690725220,0.0004,119380.0,119370.0,5.455909]
[1752690725427,0.01615186,119390.0,119380.0,0.53266123]
[1752690725621,0.01615186,119390.0,119380.0,5.30533286]
[1752690725830,0.01615186,119390.0,119380.0,5.30549286]
[1752690726506,0.01615186,119390.0,119380.0,4.88026351]
[1752690726709,0.01615186,119390.0,119380.0,5.27333286]
[1752690726941,0.01615186,119390.0,119380.0,5.30549286]
[1752690727886,0.01615186,119390.0,119380.0,4.88226351]
[1752690728345,0.01922186,119390.0,119380.0,4.88226351]
[1752690728559,0.01922186,119390.0,119380.0,0.77043151]
[1752690728765,0.01922186,119390.0,119380.0,4.88222351]
[1752690729017,0.01615186,119390.0,119380.0,4.88222351]
[1752690729251,0.01615186,119390.0,119380.0,4.74650351]
[1752690729457,0.01615186,119390.0,119380.0,4.88222351]
[1752690729655,0.01615186,119390.0,119380.0,0.62043151]
[1752690729930,0.01615186,119390.0,119380.0,4.74650351]
[1752690730143,0.01922186,119390.0,119380.0,4.88222351]
[1752690730373,0.01922186,119390.0,119380.0,4.74650351]
[1752690731027,0.02125186,119390.0,119380.0,4.88222351]
[1752690731658,0.02125186,119390.0,119380.0,0.75615151]
[1752690731873,0.02125186,119390.0,119380.0,4.88222351]
[1752690732288,0.01615186,119390.0,119380.0,4.88222351]
[1752690732499,0.01615186,119390.0,119380.0,5.29159286]
[1752690733146,0.01615186,119390.0,119380.0,4.88222351]
[1752690734129,0.01908186,119390.0,119380.0,4.88218351]
[1752690734550,0.43841662,119390.0,119380.0,4.74624351]
[1752690734770,0.44644121,119390.0,119380.0,4.88192351]
[1752690734977,0.05337186,119390.0,119380.0,4.88192351]
[1752690736021,0.03747186,119390.0,119380.0,4.88218351]
[1752690736222,0.02107186,119390.0,119380.0,4.88218351]
[1752690736432,0.03657186,119390.0,119380.0,4.88218351]
[1752690736637,0.05297186,119390.0,119380.0,4.88192351]
[1752690738517,0.03747186,119390.0,119380.0,4.74650351]
[1752690738716,0.02107186,119390.0,119380.0,4.88218351]
[1752690738923,0.01908186,119390.0,119380.0,4.88218351]
[1752690739123,0.01615186,119390.0,119380.0,5.27525286]
[1752690739331,0.01615186,119390.0,119380.0,5.33068486]
[1752690739544,0.01615186,119390.0,119380.0,5.33084486]
[1752690740904,0.01615186,119390.0,119380.0,5.32110796]
[1752690742269,0.01615186,119390.0,119380.0,4.90731551]
[1752690742695,0.01615186,119390.0,119380.0,4.90531551]
[1752690743113,0.01615186,119390.0,119380.0,4.76963551]
[1752690743321,0.01615186,119390.0,119380.0,4.90527551]
[1752690744394,0.01615186,119390.0,119380.0,4.90727551]
[1752690744822,0.02107186,119390.0,119380.0,4.77163551]
[1752690745030,0.05147186,119390.0,119380.0,4.90701551]
[1752690745913,0.02107186,119390.0,119380.0,4.90727551]
[1752690746115,0.01615186,119390.0,119380.0,4.90727551]
[1752690747792,0.01615186,119390.0,119380.0,5.29060796]
[1752690748002,0.01615186,119390.0,119380.0,4.90727551]
[1752690748204,0.01615186,119390.0,119380.0,5.32240796]
[1752690748422,0.01615186,119390.0,119380.0,5.32256796]
[1752690749366,0.01615186,119390.0,119380.0,1.19649596]
[1752690749611,0.01615186,119390.0,119380.0,4.93907551]
[1752690750242,0.01908186,119390.0,119380.0,4.90727551]
[1752690750454,0.01615186,119390.0,119380.0,4.90727551]
[1752690750873,0.01615186,119390.0,119380.0,4.93863551]
[1752690751081,0.01615186,119390.0,119380.0,5.32196796]
[1752690751697,1e-08,119390.0,119380.0,4.93863551]
[1752690751906,0.03613,119410.0,119400.0,0.53262894]
[1752690752115,0.00608101,119410.0,119400.0,4.88007122]
[1752690752320,0.00315101,119410.0,119400.0,4.88007122]
[1752690752747,0.00315101,119410.0,119400.0,5.28334867]
[1752690753596,0.00315101,119410.0,119400.0,4.90001622]
[1752690754232,0.00415101,119410.0,119400.0,4.90001622]
[1752690754674,0.00415101,119410.0,119400.0,4.76441622]
[1752690754893,0.03967101,119410.0,119400.0,4.90001622]
[1752690755114,0.03967101,119410.0,119400.0,4.76415622]
[1752690755555,0.04804488,119410.0,119400.0,4.89975622]
[1752690755761,0.0564191,119410.0,119400.0,4.88300659]
[1752690755974,0.04804495,119410.0,119400.0,4.59026659]
[1752690756185,0.04804495,119410.0,119400.0,3.51603528]
[1752690756407,0.03967101,119410.0,119400.0,3.51603528]
[1752690756613,0.04804495,119410.0,119400.0,4.85845828]
[1752690756896,0.03967101,119410.0,119400.0,0.76211428]
[1752690757108,0.04804495,119410.0,119400.0,0.76211428]
[1752690757342,0.03967101,119410.0,119400.0,4.88818628]
[1752690758616,0.05641882,119410.0,119400.0,4.88818628]
[1752690759047,0.04804488,119410.0,119400.0,4.88818628]
[1752690759261,0.03967101,119410.0,119400.0,4.88818628]
[1752690759706,0.00415101,119410.0,119400.0,5.27177873]
[1752690760145,0.00415101,119410.0,119400.0,5.28837873]
[1752690760366,0.00415101,119410.0,119400.0,5.30817873]
[1752690760587,1e-08,119410.0,119400.0,5.47347873]
[1752690760816,0.0004,119420.0,119410.0,0.53261281]
[1752690761054,0.0004,119420.0,119410.0,5.29564754]
[1752690761287,0.0004,119420.0,119410.0,5.36299895]
[1752690761977,0.0004,119420.0,119410.0,4.9796665]
[1752690762230,0.0004,119420.0,119410.0,5.29564754]
[1752690763952,0.0004,119420.0,119410.0,5.27954754]
[1752690764191,0.0004,119420.0,119410.0,5.30470378]
[1752690764432,0.0004,119420.0,119410.0,5.33560463]
[1752690764596,0.0004,119420.0,119410.0,4.95227218]
[1752690764884,0.0004,119420.0,119410.0,5.33560463]
[1752690766131,0.0004,119420.0,119410.0,4.95211218]
[1752690766463,0.0032,119430.0,119420.0,0.68259669]
[1752690766686,0.0032,119430.0,119420.0,5.02999897]
[1752690767218,0.0032,119430.0,119420.0,5.04952897]
[1752690767689,0.03393,119440.0,119430.0,0.53258057]
[1752690767890,0.03591,119440.0,119430.0,0.75361085]
[1752690768109,0.03591,119440.0,119430.0,4.87968285]
[1752690769416,0.0225,119450.0,119440.0,0.53256445]
[1752690769659,0.0225,119450.0,119440.0,4.87966673]
[1752690769660,0.02265095,119450.0,119440.0,4.87966673]
[1752690769874,0.00645095,119450.0,119440.0,4.87992673]
[1752690770357,0.00335095,119450.0,119440.0,4.87992673]
[1752690771092,0.00335095,119450.0,119440.0,4.89942673]
[1752690771589,0.0034,119470.0,119460.0,0.53253221]
[1752690771808,0.00588307,119470.0,119460.0,4.74411449]
[1752690772008,0.00898307,119470.0,119460.0,4.87963449]
[1752690772276,0.00898307,119470.0,119460.0,4.90475149]
[1752690772914,0.02508307,119470.0,119460.0,4.90475149]
[1752690773346,0.02508307,119470.0,119460.0,4.97007149]
[1752690773557,0.04268307,119470.0,119460.0,5.10559149]
[1752690773772,0.04268307,119470.0,119460.0,4.97007149]
[1752690773990,0.04268307,119470.0,119460.0,5.10559149]
[1752690774418,0.04268307,119470.0,119460.0,5.10555149]
[1752690775077,0.04268307,119470.0,119460.0,0.97947949]
[1752690775316,0.04268307,119470.0,119460.0,5.10555149]
[1752690775803,0.001,119470.0,119460.0,5.49233394]
[1752690776062,0.001,119470.0,119460.0,5.50853394]
[1752690776307,0.0349,119490.0,119480.0,0.53249999]
[1752690776531,0.03505083,119490.0,119480.0,4.88161227]
[1752690776752,0.03703083,119490.0,119480.0,4.88161227]
[1752690777621,0.00235083,119490.0,119480.0,5.26813472]
[1752690777835,0.00235083,119490.0,119480.0,4.88480227]
[1752690778046,0.03893083,119490.0,119480.0,4.74408227]
[1752690778249,0.03893083,119490.0,119480.0,4.87956227]
[1752690778486,0.03993083,119490.0,119480.0,4.90086227]
[1752690778904,0.03056714,119490.0,119480.0,4.90086227]
[1752690779327,0.02220345,119490.0,119480.0,4.90082227]
[1752690779815,0.01383976,119490.0,119480.0,4.90082227]
[1752690780067,0.01581976,119490.0,119480.0,4.90082227]
[1752690780286,0.00745607,119490.0,119480.0,4.90082227]
[1752690780754,0.00745607,119490.0,119480.0,4.76538227]
[1752690780945,0.00745607,119490.0,119480.0,4.92612913]
[1752690781153,0.00745607,119490.0,119480.0,4.79068913]
[1752690781570,0.59164088,119490.0,119480.0,0.8515557]
[1752690781793,0.39160852,119490.0,119480.0,1.35299713]
[1752690781999,0.41671396,119490.0,119480.0,1.35299713]
[1752690782206,0.59246081,119490.0,119480.0,1.0129972]
[1752690782405,0.41671389,119490.0,119480.0,1.36136631]
[1752690782630,0.02501275,119490.0,119480.0,1.22592631]
[1752690782839,0.04141275,119490.0,119480.0,3.13902031]
[1752690783049,0.0497813,119490.0,119480.0,3.27446031]
[1752690783262,0.05815006,119490.0,119480.0,1.80546931]
[1752690783499,0.44148251,119490.0,119480.0,1.58006031]
[1752690783702,0.05815006,119490.0,119480.0,0.78712631]
[1752690783936,0.02385607,119490.0,119480.0,1.80822931]
[1752690784564,0.00198,119490.0,119480.0,1.81346931]
[1752690784768,0.00198,119490.0,119480.0,3.87850931]
[1752690784974,0.01838,119490.0,119480.0,3.87850931]
[1752690785209,0.01838,119490.0,119480.0,3.82896231]
[1752690785408,0.01838,119490.0,119480.0,3.82691231]
[1752690785838,0.01838,119490.0,119480.0,3.95260631]
[1752690786068,0.01838,119490.0,119480.0,3.72192131]
[1752690786284,0.01838,119490.0,119480.0,3.84903031]
[1752690786499,0.01838,119490.0,119480.0,3.72207031]
[1752690787625,0.01838,119490.0,119480.0,3.95538731]
[1752690787827,0.01838,119490.0,119480.0,3.85065531]
[1752690788041,0.04324827,119490.0,119480.0,3.85065531]
[1752690788259,0.03488,119490.0,119480.0,3.75715931]
[1752690788490,0.03488,119490.0,119480.0,3.68812331]
[1752690789517,0.03488,119490.0,119480.0,3.55673031]
[1752690789756,0.04833969,119470.0,119460.0,0.16942005]
[1752690789972,0.41773245,119470.0,119460.0,0.95181019]
[1752690790192,0.05113969,119470.0,119460.0,0.80803933]
[1752690790406,0.23528598,119470.0,119460.0,0.76764828]
[1752690790628,0.60187874,119470.0,119460.0,0.1374]
[1752690790841,0.60187874,119470.0,119460.0,0.4774]
[1752690791056,0.05113983,119470.0,119460.0,0.75757105]
[1752690791272,0.2269161,119470.0,119460.0,0.598522]
[1752690791507,0.2269161,119470.0,119460.0,0.76594205]
[1752690791720,0.60187874,119470.0,119460.0,0.342]
[1752690791948,0.60287874,119470.0,119460.0,0.342]
[1752690792165,0.60287874,119470.0,119460.0,0.4774]
[1752690792821,0.21854629,119470.0,119460.0,0.51779091]
[1752690793038,0.21854629,119470.0,119460.0,0.65319098]
[1752690793256,0.22691659,119470.0,119460.0,0.64482005]
[1752690793471,0.22691659,119470.0,119460.0,0.65319105]
[1752690793690,0.21854657,119470.0,119460.0,0.4774]
[1752690794345,0.22054657,119470.0,119460.0,0.4774]
[1752690794562,0.60387902,119470.0,119460.0,0.4774]
[1752690795520,0.60387902,119470.0,119460.0,0.002]
[1752690795735,0.22054657,119470.0,119460.0,0.002]
[1752690795953,0.60387902,119470.0,119460.0,0.842]
[1752690796174,0.60387902,119470.0,119460.0,0.002]
[1752690796400,0.61841987,119470.0,119460.0,0.842]
[1752690796615,0.61841987,119470.0,119460.0,0.342]
[1752690796616,0.75381987,119470.0,119460.0,0.342]
[1752690797059,0.61841987,119470.0,119460.0,0.342]
[1752690797306,1.30128382,119470.0,119460.0,0.002]
[1752690797774,0.91795137,119470.0,119460.0,0.002]
[1752690798000,0.83937015,119470.0,119460.0,0.002]
[1752690798228,0.70393015,119470.0,119460.0,0.002]
[1752690798453,0.83801015,119470.0,119460.0,0.002]
[1752690798911,0.84301015,119470.0,119460.0,0.002]
[1752690799359,0.84301015,119470.0,119440.0,0.003]
[1752690799360,0.19871783,119450.0,119440.0,0.003]
[1752690799571,1.52075301,119450.0,119440.0,0.003]
[1752690799782,1.38467301,119450.0,119440.0,0.003]
[1752690799997,1.52386301,119450.0,119440.0,0.003]
[1752690800660,1.52386301,119450.0,119440.0,0.00350307]
[1752690800881,1.14045056,119450.0,119440.0,0.00350307]
[1752690801605,1.52378301,119450.0,119440.0,0.00350307]
[1752690801864,1.14145056,119450.0,119440.0,0.00350307]
[1752690802093,1.14141056,119450.0,119440.0,0.00350307]
[1752690802631,0.67256783,119450.0,119440.0,0.00350307]
[1752690802864,0.53664783,119450.0,119440.0,0.00350307]
[1752690803119,1.05590028,119450.0,119440.0,0.00350307]
[1752690804042,1.43923273,119450.0,119440.0,0.00350307]
[1752690806036,1.05590028,119450.0,119440.0,0.00350307]
[1752690807827,0.67256783,119450.0,119440.0,0.00350307]
[1752690808102,1.05590028,119450.0,119440.0,0.00350307]
[1752690808345,1.52474301,119450.0,119440.0,0.00350307]
[1752690809511,1.00549056,119450.0,119440.0,0.00350307]
[1752690809759,0.75807811,119450.0,119440.0,0.00350307]
[1752690810003,1.14141056,119450.0,119440.0,0.00350307]
[1752690810980,1.00549056,119450.0,119440.0,0.00350307]
[1752690811222,0.91998028,119450.0,119440.0,0.00350307]
[1752690811428,1.05590028,119450.0,119440.0,0.00350307]
[1752690811653,1.05590028,119450.0,119440.0,0.60556879]
[1752690811654,0.30208,119450.0,119440.0,0.60556879]
[1752690811890,0.32719391,119450.0,119440.0,0.54138738]
[1752690812108,0.32719377,119450.0,119440.0,0.54138738]
[1752690812338,0.31045114,119450.0,119440.0,2.03192479]
[1752690812556,0.001,119450.0,119440.0,2.13283507]
[1752690813219,0.00937107,119450.0,119440.0,2.13283507]
[1752690813452,0.001,119450.0,119440.0,3.39751307]
[1752690814376,0.001,119450.0,119440.0,4.06798207]
[1752690814653,0.001,119450.0,119440.0,4.08368207]
[1752690814876,0.001,119450.0,119440.0,4.46701452]
[1752690815094,0.001,119450.0,119440.0,4.08368207]
[1752690815310,0.001,119450.0,119440.0,4.85142107]
[1752690815531,0.42048245,119490.0,119480.0,0.51576156]
[1752690815751,0.002,119490.0,119480.0,0.67056999]
[1752690815980,0.02710537,119490.0,119480.0,1.63020899]
[1752690816198,0.01036834,119490.0,119480.0,1.63020899]
[1752690816841,0.01036827,119490.0,119480.0,1.71571927]
[1752690817114,0.01873675,119490.0,119480.0,1.71571927]
[1752690817324,0.01873675,119490.0,119480.0,1.74105991]
[1752690817743,0.01036827,119490.0,119480.0,1.74105991]
[1752690818690,0.0271053,119490.0,119480.0,1.74101991]
[1752690819140,0.01036827,119490.0,119480.0,1.74101991]
[1752690820005,0.01873675,119490.0,119480.0,1.74101991]
[1752690820215,0.0354742,119490.0,119480.0,1.74101991]
[1752690820426,0.02710537,119490.0,119480.0,1.74101991]
[1752690821304,0.002,119490.0,119480.0,1.74101991]
[1752690821520,0.01873689,119490.0,119480.0,1.60513991]
[1752690821730,0.01873689,119490.0,119480.0,1.74105991]
[1752690822195,0.01873682,119490.0,119480.0,1.74105991]
[1752690822404,0.002,119490.0,119480.0,1.74105991]
[1752690822617,0.002,119490.0,119480.0,1.75745991]
[1752690823033,0.002,119490.0,119480.0,4.80694291]
[1752690823249,0.002,119490.0,119480.0,4.94282291]
[1752690823682,0.002,119490.0,119480.0,4.89884091]
[1752690824127,0.002,119490.0,119480.0,4.94282291]
[1752690825728,0.002,119490.0,119480.0,4.38229791]
[1752690825946,0.002,119490.0,119480.0,4.35429891]
[1752690826199,0.002,119490.0,119480.0,4.94282291]
[1752690826446,0.01036834,119490.0,119480.0,3.61605291]
[1752690826657,0.002,119490.0,119480.0,3.61605291]
[1752690827332,0.002,119490.0,119480.0,4.00430091]
[1752690827913,0.002,119490.0,119480.0,1.65606391]
[1752690828114,0.002,119490.0,119480.0,0.80087091]
[1752690828316,0.002,119490.0,119480.0,2.98867391]
[1752690828491,0.002,119490.0,119480.0,3.12447391]
[1752690829204,0.002,119490.0,119480.0,3.50746791]
[1752690829408,0.002,119490.0,119480.0,3.52406791]
[1752690829609,0.002,119490.0,119480.0,3.47836291]
[1752690830194,0.002,119490.0,119480.0,4.82510591]
[1752690831458,0.002,119490.0,119480.0,4.88090491]
[1752690832181,0.002,119490.0,119480.0,4.71624691]
[1752690832474,0.002,119490.0,119480.0,4.88068091]
[1752690832711,0.002,119490.0,119480.0,2.95824991]
[1752690833394,0.002,119490.0,119480.0,4.84331491]
[1752690833611,0.002,119490.0,119480.0,4.73826391]
[1752690833869,0.002,119490.0,119480.0,0.80107091]
[1752690834078,0.002,119490.0,119480.0,4.73822691]
[1752690835041,0.002,119490.0,119480.0,4.91684191]
[1752690835735,0.002,119490.0,119480.0,4.86759291]
[1752690835969,0.002,119490.0,119480.0,4.92714291]
[1752690836426,0.002,119490.0,119480.0,4.94244291]
[1752690841648,6e-05,119500.0,119490.0,0.56308388]
[1752690841865,6e-05,119500.0,119490.0,5.29549861]
[1752690842086,6e-05,119500.0,119490.0,5.29874861]
[1752690842535,6e-05,119500.0,119490.0,4.91541616]
[1752690842750,6e-05,119500.0,119490.0,5.30209661]
[1752690844270,6e-05,119500.0,119490.0,5.30509661]
[1752690844495,6e-05,119500.0,119490.0,4.92176416]
[1752690847833,6e-05,119500.0,119490.0,1.17902461]
[1752690848061,6e-05,119500.0,119490.0,5.30509661]
[1752690848515,1e-08,119520.0,119500.0,0.17573172]
[1752690848753,1e-08,119520.0,119510.0,5.66327827]
[1752690849000,0.0002,119540.0,119530.0,0.56421947]
[1752690849251,0.0002,119540.0,119530.0,4.91326175]
[1752690849475,0.0032,119550.0,119540.0,0.53240337]
[1752690849696,0.0032,119550.0,119540.0,4.12675765]
[1752690849916,0.0032,119550.0,119540.0,4.04432265]
[1752690850363,0.002,119570.0,119560.0,0.53237118]
[1752690850578,0.002,119570.0,119560.0,2.79897546]
[1752690851018,0.01036267,119570.0,119560.0,2.54637146]
[1752690851258,0.002,119570.0,119560.0,2.66102646]
[1752690851908,0.01036267,119570.0,119560.0,2.60607746]
[1752690852142,0.01036267,119570.0,119560.0,2.58131946]
[1752690853031,0.002,119570.0,119560.0,2.58131946]
[1752690853252,0.002,119570.0,119560.0,2.60606915]
[1752690853467,0.002,119570.0,119560.0,2.62136915]
[1752690854337,0.01056127,119590.0,119580.0,0.192339]
[1752690854555,0.02778705,119590.0,119580.0,2.847392]
[1752690854777,0.01106416,119590.0,119580.0,2.768122]
[1752690855002,0.00270289,119590.0,119580.0,2.768122]
[1752690855227,0.01106416,119590.0,119580.0,2.768122]
[1752690855445,0.00270289,119590.0,119580.0,2.85363228]
[1752690855666,0.00270289,119590.0,119580.0,3.19363228]
[1752690855881,0.00270289,119590.0,119580.0,4.89966128]
[1752690856359,0.00970289,119590.0,119580.0,4.89966128]
[1752690856831,0.00970289,119590.0,119580.0,4.88456128]
[1752690857039,0.01106423,119590.0,119580.0,4.17480128]
[1752690857260,0.00270289,119590.0,119580.0,2.83232928]
[1752690857923,0.00270289,119590.0,119580.0,4.84680728]
[1752690858146,0.00270289,119590.0,119580.0,4.56844128]
[1752690858367,0.01506416,119590.0,119580.0,4.03114728]
[1752690858589,0.01506416,119590.0,119580.0,3.86237828]
[1752690858804,0.00670289,119590.0,119580.0,4.49460228]
[1752690859026,0.01506416,119590.0,119580.0,4.11010028]
[1752690859479,0.00670289,119590.0,119580.0,4.11010028]
[1752690859707,0.00670289,119590.0,119580.0,4.03927328]
[1752690859922,0.03387754,119590.0,119580.0,0.90514632]
[1752690860136,0.45087999,119590.0,119580.0,0.96132975]
[1752690860380,0.62647988,119590.0,119580.0,0.9529675]
[1752690860629,0.61811854,119590.0,119580.0,0.9529675]
[1752690860848,0.60975699,119590.0,119580.0,0.81756764]
[1752690861054,0.22642454,119590.0,119580.0,0.9612901]
[1752690861283,0.22642454,119590.0,119580.0,0.96965249]
[1752690861504,0.22642454,119590.0,119580.0,0.9612901]
[1752690861727,0.22642454,119590.0,119580.0,0.96129017]
[1752690862203,0.22642454,119590.0,119580.0,0.96965263]
[1752690862657,0.05918648,119590.0,119580.0,0.97801488]
[1752690862931,0.06754838,119590.0,119580.0,0.97801488]
[1752690863172,0.23478644,119590.0,119580.0,0.97801495]
[1752690863415,0.02409289,119590.0,119580.0,0.98637706]
[1752690863637,0.00670289,119590.0,119580.0,4.90124634]
[1752690863864,0.02342564,119590.0,119580.0,4.90124634]
[1752690864087,0.02342564,119590.0,119580.0,4.81234534]
[1752690864308,0.00670289,119590.0,119580.0,4.82734534]
[1752690864561,0.02342585,119590.0,119580.0,3.98625634]
[1752690864784,0.02342585,119590.0,119580.0,4.84370234]
[1752690864998,0.0150643,119590.0,119580.0,3.30419134]
[1752690865213,0.00670289,119590.0,119580.0,3.30419134]
[1752690865448,0.01506423,119590.0,119580.0,3.30419134]
[1752690865663,0.00670289,119590.0,119580.0,4.54059834]
[1752690865886,0.02342564,119590.0,119580.0,3.98106934]
[1752690866132,0.03178726,119590.0,119580.0,2.84449634]
[1752690866345,0.02342564,119590.0,119580.0,0.77517434]
[1752690866561,0.03178726,119590.0,119580.0,2.62467234]
[1752690866782,0.00670289,119590.0,119580.0,2.53894034]
[1752690867236,0.00670289,119590.0,119580.0,2.55424034]
[1752690867723,0.00670289,119590.0,119580.0,1.19030679]
[1752690867945,0.00670289,119590.0,119580.0,4.93304634]
[1752690868139,0.00670289,119590.0,119580.0,5.31637879]
[1752690868420,0.00670289,119590.0,119580.0,4.93304634]
[1752690868683,0.00670289,119590.0,119580.0,2.87602134]
[1752690868971,0.00670289,119590.0,119580.0,2.53221534]
[1752690869928,0.00670289,119590.0,119580.0,3.87180334]
[1752690870153,0.00670289,119590.0,119580.0,3.88830334]
[1752690870389,0.00670289,119590.0,119580.0,4.27163579]
[1752690870656,0.00670289,119590.0,119580.0,4.42163579]
[1752690870657,1e-08,119590.0,119580.0,4.42163579]
[1752690870877,0.0022,119610.0,119600.0,0.54820684]
[1752690871099,0.00235074,119610.0,119600.0,4.91249912]
[1752690871318,0.00235074,119610.0,119600.0,4.91558912]
[1752690872686,0.00235074,119610.0,119600.0,5.29892157]
[1752690873583,0.00235074,119610.0,119600.0,5.32400957]
[1752690873800,0.00235074,119610.0,119600.0,1.19893757]
[1752690874012,0.00235074,119610.0,119600.0,5.47500957]
[1752690875197,0.00235074,119610.0,119600.0,5.09167712]
[1752690875964,0.00235074,119610.0,119600.0,0.66504512]
[1752690876188,0.00235074,119610.0,119600.0,4.35508612]
[1752690876936,0.00235074,119610.0,119600.0,4.90134912]
[1752690878902,0.00235074,119610.0,119600.0,0.77527712]
[1752690879111,0.00235074,119610.0,119600.0,4.90134912]
[1752690880057,0.00235074,119610.0,119600.0,4.76602912]
[1752690880280,0.00235074,119610.0,119600.0,4.90134912]
[1752690883363,0.00235074,119610.0,119600.0,4.90130912]
[1752690885189,0.00235074,119610.0,119600.0,4.76602912]
[1752690885401,0.00235074,119610.0,119600.0,4.90130912]
[1752690886857,0.00235074,119610.0,119600.0,5.30084157]
[1752690887291,0.002,119630.0,119620.0,0.54867468]
[1752690887519,0.002,119630.0,119620.0,4.76231696]
[1752690887729,0.002,119630.0,119620.0,4.76533696]
[1752690887944,0.002,119630.0,119620.0,4.88421696]
[1752690888159,0.002,119630.0,119620.0,3.56707396]
[1752690888373,0.002,119630.0,119620.0,3.30698996]
[1752690889004,0.04026715,119630.0,119620.0,2.3208392]
[1752690889212,0.62032343,119630.0,119620.0,0.36461224]
[1752690889422,0.62132343,119630.0,119620.0,0.49989224]
[1752690889624,0.23799098,119630.0,119620.0,0.36461224]
[1752690889832,0.62132343,119630.0,119620.0,0.36461224]
[1752690891113,0.62132343,119630.0,119620.0,0.54852775]
[1752690891350,0.62132343,119630.0,119620.0,0.5568872]
[1752690892001,0.23799098,119630.0,119620.0,0.5568872]
[1752690892216,0.25470869,119630.0,119620.0,0.70048658]
[1752690892434,0.04790868,119630.0,119620.0,0.70048672]
[1752690892667,0.04472854,119630.0,119620.0,0.70048672]
[1752690893105,0.05308722,119630.0,119620.0,0.70048672]
[1752690893582,0.04472854,119630.0,119620.0,2.56587872]
[1752690893798,0.02972854,119630.0,119620.0,2.56587872]
[1752690894240,0.003,119630.0,119620.0,2.57095872]
[1752690894451,0.02178729,119630.0,119620.0,1.79681472]
[1752690894689,0.06214618,119630.0,119620.0,1.67461372]
[1752690894907,0.22414999,119630.0,119620.0,0.36461224]
[1752690895128,0.23869084,119630.0,119620.0,0.49985224]
[1752690895338,0.23869084,119630.0,119620.0,0.36461224]
[1752690895556,0.23869084,119630.0,119620.0,0.49985224]
[1752690895767,0.62202329,119630.0,119620.0,0.49985224]
[1752690896178,0.62202329,119630.0,119620.0,0.36461224]
[1752690896386,0.62202329,119630.0,119620.0,0.49985224]
[1752690896597,0.62202329,119630.0,119620.0,0.36461224]
[1752690896804,0.62202329,119630.0,119620.0,0.02461224]